bitfinex/quotes_SOLUSD_20240705
["timestamp","ask_amount","ask_price","bid_price","bid_amount"]
[1720179557329,0.8723684,129.92,129.9,100.0]
[1720179557536,0.8723684,129.92,129.91,20.0]
[1720179558315,0.8723684,129.92,129.91,43.26]
[1720179559339,0.8723684,129.92,129.91,20.0]
[1720179559523,0.8723684,129.92,129.9,20.0]
[1720179560444,0.8723684,129.92,129.9,120.0]
[1720179561338,0.8723684,129.92,129.88,100.0]
[1720179561512,0.8723684,129.92,129.86,123.26]
[1720179563422,0.8723684,129.92,129.87,20.0]
[1720179564123,0.8723684,129.92,129.88,100.0]
[1720179564321,0.8723684,129.92,129.89,20.0]
[1720179566147,0.8723684,129.92,129.87,20.0]
[1720179566326,0.17,129.91,129.86,120.0]
[1720179567223,0.8723684,129.92,129.86,143.26]
[1720179567749,0.17,129.91,129.86,143.26]
[1720179568544,0.17,129.91,129.86,120.0]
[1720179568935,0.8723684,129.92,129.86,143.26]
[1720179569238,0.8723684,129.92,129.88,100.0]
[1720179570053,0.8723684,129.92,129.89,20.0]
[1720179570543,0.8723684,129.92,129.87,20.0]
[1720179570850,0.17,129.91,129.84,100.0]
[1720179571054,0.17,129.91,129.82,100.0]
[1720179571726,0.17,129.91,129.82,123.26]
[1720179572646,0.17,129.91,129.84,100.0]
[1720179572820,7.6987,129.9,129.81,100.0]
[1720179573022,0.17,129.89,129.81,100.0]
[1720179573242,7.699,129.89,129.77,106.3823]
[1720179573434,0.17,129.88,129.77,106.3823]
[1720179573621,7.7001,129.87,129.77,106.3823]
[1720179573829,5.9613,129.85,129.77,100.0]
[1720179574236,0.17,129.84,129.77,100.0]
[1720179574639,0.17,129.84,129.77,123.26]
[1720179575349,0.17,129.84,129.77,100.0]
[1720179575525,7.7029,129.82,129.75,100.0]
[1720179575725,7.8735,129.81,129.73,100.0]
[1720179575956,34.33,129.84,129.71,34.16]
[1720179576251,7.7034,129.82,129.71,134.16]
[1720179576430,0.17,129.81,129.72,23.26]
[1720179576627,5.9613,129.79,129.69,100.0]
[1720179576830,0.17,129.78,129.69,100.0]
[1720179577447,0.17,129.78,129.69,123.26]
[1720179577638,0.17,129.78,129.69,100.0]
[1720179577838,7.7065,129.77,129.69,100.0]
[1720179578042,0.17,129.78,129.69,100.0]
[1720179578245,7.7061,129.77,129.69,100.0]
[1720179578460,0.17,129.76,129.69,100.0]
[1720179578632,7.8754,129.78,129.69,100.0]
[1720179578831,0.17,129.78,129.69,100.0]
[1720179579159,0.17,129.78,129.69,123.26]
[1720179579533,0.17,129.78,129.69,100.0]
[1720179579728,7.8753,129.78,129.69,100.0]
[1720179580039,0.17,129.78,129.7,20.0]
[1720179580837,7.7075,129.75,129.67,100.0]
[1720179581035,7.8777,129.74,129.65,23.26]
[1720179581352,0.17,129.78,129.65,23.26]
[1720179581353,7.7055,129.78,129.69,100.0]
[1720179581556,14.00567023,129.79,129.69,100.0]
[1720179581848,21.71037023,129.79,129.69,100.0]
[1720179582057,14.00567023,129.79,129.72,100.0]
[1720179583638,21.71057023,129.79,129.7,100.0]
[1720179583838,21.71057023,129.79,129.71,20.0]
[1720179584450,0.17,129.78,129.71,20.0]
[1720179584928,7.8754,129.78,129.71,20.0]
[1720179585429,0.17,129.78,129.66,23.26]
[1720179585643,0.17,129.78,129.65,200.0]
[1720179585644,0.17,129.78,129.67,123.26]
[1720179586066,7.8755,129.78,129.67,123.26]
[1720179586235,7.8755,129.78,129.69,100.0]
[1720179587064,0.17,129.78,129.69,100.0]
[1720179587231,7.8756,129.78,129.69,100.0]
[1720179587859,0.17,129.78,129.67,123.26]
[1720179588060,0.17,129.78,129.68,20.0]
[1720179588357,7.706,129.77,129.68,20.0]
[1720179588543,0.17,129.76,129.68,20.0]
[1720179589138,0.17,129.76,129.69,100.0]
[1720179589532,7.7073,129.75,129.68,20.0]
[1720179589734,0.17,129.74,129.68,20.0]
[1720179591439,0.17,129.74,129.69,100.0]
[1720179592232,0.17,129.74,129.68,20.0]
[1720179592634,0.17,129.74,129.67,123.26]
[1720179594049,0.17,129.74,129.67,100.0]
[1720179595156,0.17,129.75,129.67,100.0]
[1720179595357,0.17,129.75,129.65,100.0]
[1720179595358,5.9613,129.74,129.65,100.0]
[1720179595572,0.17,129.73,129.62,100.0]
[1720179595739,7.7092,129.72,129.62,100.0]
[1720179596140,0.17,129.71,129.62,100.0]
[1720179596373,0.17,129.71,129.63,23.26]
[1720179597032,0.17,129.71,129.64,20.0]
[1720179597235,0.17,129.71,129.65,100.0]
[1720179597852,0.17,129.72,129.65,100.0]
[1720179598075,5.9613,129.74,129.67,123.26]
[1720179598269,5.9613,129.74,129.69,123.26]
[1720179598858,5.9613,129.74,129.69,100.0]
[1720179599165,5.9613,129.74,129.69,123.26]
[1720179599774,5.9613,129.74,129.69,23.26]
[1720179600246,5.9613,129.74,129.67,123.26]
[1720179600440,5.9613,129.74,129.68,20.0]
[1720179601450,0.17,129.73,129.68,20.0]
[1720179601944,5.9613,129.74,129.69,100.0]
[1720179602163,8.0447999,129.75,129.71,100.0]
[1720179602361,8.0447999,129.75,129.71,23.26]
[1720179602663,8.0447999,129.75,129.71,100.0]
[1720179602871,8.0447999,129.75,129.74,123.26]
[1720179603076,8.0447999,129.75,129.74,143.43]
[1720179603285,6.09571056,129.8,129.79,123.26]
[1720179603576,5.9613,129.87,129.81,100.0]
[1720179604444,5.9613,129.87,129.79,100.0]
[1720179604677,13.6613,129.87,129.79,123.26]
[1720179605005,5.9613,129.87,129.79,123.26]
[1720179605147,5.9613,129.87,129.81,100.0]
[1720179606074,5.9613,129.87,129.79,123.26]
[1720179606447,5.9613,129.87,129.81,100.0]
[1720179606669,5.9613,129.87,129.79,123.26]
[1720179606872,0.17,129.86,129.79,123.26]
[1720179607879,7.8706,129.86,129.79,100.0]
[1720179608053,0.17,129.86,129.77,123.26]
[1720179608251,0.17,129.86,129.78,20.0]
[1720179608571,0.17,129.86,129.78,43.26]
[1720179609185,5.9613,129.87,129.83,100.0]
[1720179609517,14.0033,129.91,129.83,123.26]
[1720179609791,14.0033,129.91,129.86,100.0]
[1720179610376,14.0033,129.91,129.84,123.26]
[1720179610798,0.17,129.9,129.84,100.0]
[1720179610969,14.0033,129.91,129.84,100.0]
[1720179612308,14.0033,129.91,129.86,100.0]
[1720179614183,14.0033,129.91,129.84,100.0]
[1720179614498,7.8682,129.9,129.81,23.26]
[1720179614804,7.6988,129.89,129.81,23.26]
[1720179614973,0.17,129.88,129.79,115.4192]
[1720179615400,0.17,129.88,129.81,123.26]
[1720179615989,0.17,129.89,129.82,20.0]
[1720179616377,7.8689,129.89,129.82,20.0]
[1720179616573,0.17,129.89,129.82,20.0]
[1720179616892,7.8691,129.89,129.82,20.0]
[1720179617295,0.17,129.89,129.82,20.0]
[1720179617488,7.6994,129.88,129.79,138.6792]
[1720179617700,0.17,129.87,129.79,100.0]
[1720179617911,0.17,129.89,129.77,100.0]
[1720179618206,7.7013,129.85,129.77,100.0]
[1720179618384,14.1733,129.84,129.77,100.0]
[1720179619003,14.1733,129.84,129.75,23.26]
[1720179619004,14.1733,129.84,129.75,123.26]
[1720179619505,21.8751,129.84,129.75,100.0]
[1720179619702,7.7026,129.83,129.75,100.0]
[1720179620015,0.17,129.82,129.73,100.0]
[1720179620201,7.8731,129.82,129.73,100.0]
[1720179620404,7.7036,129.81,129.71,100.0]
[1720179620700,0.17,129.8,129.72,23.26]
[1720179621599,7.8737,129.81,129.72,23.26]
[1720179622188,7.8737,129.81,129.71,100.0]
[1720179622390,0.17,129.81,129.71,123.26]
[1720179622586,7.7042,129.8,129.71,100.0]
[1720179622817,0.17,129.79,129.71,100.0]
[1720179623308,7.8748,129.79,129.71,100.0]
[1720179623480,0.17,129.79,129.71,123.26]
[1720179623679,0.17,129.79,129.71,100.0]
[1720179624309,0.17,129.8,129.71,100.0]
[1720179624705,7.8746,129.8,129.71,100.0]
[1720179626119,7.7047,129.79,129.71,100.0]
[1720179626311,0.17,129.78,129.73,100.0]
[1720179626813,0.17,129.78,129.71,100.0]
[1720179627122,0.17,129.79,129.71,100.0]
[1720179627496,0.17,129.8,129.73,100.0]
[1720179627717,14.21901891,129.83,129.73,123.26]
[1720179628020,14.21901891,129.83,129.75,100.0]
[1720179628021,15.74908645,129.83,129.75,100.0]
[1720179628193,8.04618645,129.83,129.75,100.0]
[1720179628928,15.74868645,129.83,129.75,100.0]
[1720179629805,0.17,129.82,129.75,100.0]
[1720179630513,7.7036,129.81,129.75,100.0]
[1720179630825,0.17,129.82,129.75,100.0]
[1720179630826,0.17,129.8,129.75,100.0]
[1720179632916,15.74868645,129.83,129.75,100.0]
[1720179633119,8.04618645,129.83,129.77,100.0]
[1720179633921,8.04618645,129.83,129.79,100.0]
[1720179634124,21.7036,129.87,129.8,20.0]
[1720179634420,21.7034,129.87,129.8,20.0]
[1720179635812,7.8706,129.86,129.8,20.0]
[1720179636025,0.17,129.86,129.81,100.0]
[1720179636603,8.04048142,129.88,129.82,6.3549]
[1720179636918,8.5697684,129.92,129.89,100.0]
[1720179636919,0.8723684,129.92,129.89,100.0]
[1720179638528,0.8723684,129.92,129.85,100.0]
[1720179638737,0.8723684,129.92,129.86,20.0]
[1720179638924,0.17,129.91,129.86,20.0]
[1720179641837,0.17,129.91,129.85,100.0]
[1720179642139,0.17,129.91,129.83,23.26]
[1720179642140,0.17,129.91,129.83,123.26]
[1720179642318,0.17,129.91,129.82,6.3549]
[1720179642319,0.17,129.91,129.85,100.0]
[1720179643935,0.17,129.91,129.83,123.26]
[1720179644140,14.0033,129.9,129.83,100.0]
[1720179644450,0.17,129.89,129.83,100.0]
[1720179644741,0.17,129.89,129.8,100.0]
[1720179645117,0.17,129.89,129.8,123.26]
[1720179645933,0.17,129.89,129.82,100.0]
[1720179646136,0.17,129.89,129.82,123.26]
[1720179646520,14.0033,129.9,129.84,123.26]
[1720179647043,14.0033,129.9,129.76,44.7035]
[1720179647044,14.0033,129.9,129.85,20.0]
[1720179647244,14.0033,129.9,129.83,20.0]
[1720179648320,7.869,129.89,129.81,20.0]
[1720179648522,0.17,129.89,129.81,20.0]
[1720179649241,0.17,129.89,129.8,100.0]
[1720179650416,7.8689,129.89,129.81,20.0]
[1720179650619,7.8689,129.89,129.8,100.0]
[1720179651128,0.17,129.89,129.81,20.0]
[1720179652171,7.8688,129.89,129.81,20.0]
[1720179652450,7.6995,129.88,129.81,20.0]
[1720179652637,0.17,129.87,129.81,20.0]
[1720179652857,0.17,129.87,129.77,100.0]
[1720179653036,7.8701,129.87,129.77,100.0]
[1720179653345,0.17,129.87,129.77,100.0]
[1720179653730,0.17,129.88,129.79,100.0]
[1720179653924,0.17,129.89,129.79,123.26]
[1720179654333,8.91723217,129.92,129.84,100.0]
[1720179654528,8.91723217,129.92,129.86,100.0]
[1720179654529,0.8723684,129.92,129.86,100.0]
[1720179654725,0.8723684,129.92,129.87,20.0]
[1720179655662,14.0033,129.91,129.85,20.0]
[1720179655860,0.17,129.9,129.85,20.0]
[1720179656534,0.17,129.9,129.83,20.0]
[1720179656729,14.0033,129.91,129.84,123.26]
[1720179656949,14.0033,129.91,129.86,100.0]
[1720179658757,14.0033,129.91,129.85,20.0]
[1720179659344,0.17,129.9,129.85,20.0]
[1720179660844,0.17,129.9,129.86,100.0]
[1720179661943,14.0033,129.91,129.86,100.0]
[1720179662272,0.8723684,129.92,129.88,100.0]
[1720179663161,0.8723684,129.92,129.89,20.0]
[1720179663752,0.8723684,129.92,129.88,100.0]
[1720179666235,0.8723684,129.92,129.9,100.0]
[1720179666949,0.8723684,129.92,129.88,100.0]
[1720179667255,0.8723684,129.92,129.85,23.26]
[1720179667468,0.8723684,129.92,129.86,100.0]
[1720179667759,0.8723684,129.92,129.87,23.26]
[1720179667959,0.8723684,129.92,129.88,100.0]
[1720179668254,0.8723684,129.92,129.9,100.0]
[1720179668469,0.8723684,129.92,129.9,123.26]
[1720179669440,8.04067949,130.0,129.96,123.26]
[1720179669755,0.30767,130.01,129.97,20.0]
[1720179670253,0.30767,130.01,129.96,100.0]
[1720179670455,0.30767,130.01,129.97,20.0]
[1720179671759,0.30767,130.01,129.94,100.0]
[1720179671951,0.30767,130.01,129.95,20.0]
[1720179672750,0.17,130.0,129.95,20.0]
[1720179673153,0.30767,130.01,129.95,20.0]
[1720179673154,0.30767,130.01,129.96,100.0]
[1720179673377,0.30767,130.01,130.0,23.26]
[1720179673573,0.30767,130.01,130.0,43.26]
[1720179673873,0.30767,130.01,129.97,100.0]
[1720179674187,0.30767,130.01,129.95,100.0]
[1720179674360,0.30767,130.01,129.96,20.0]
[1720179674677,0.30767,130.01,129.95,100.0]
[1720179675367,0.17,130.0,129.93,123.26]
[1720179675754,0.30767,130.01,130.0,7.6923]
[1720179675956,0.30767,130.01,130.0,127.6923]
[1720179676170,0.30767,130.01,130.0,150.9523]
[1720179677672,0.8869677,130.04,130.03,19.2263]
[1720179677877,0.8869677,130.04,130.03,26.9168]
[1720179678091,0.8869677,130.04,130.03,133.1487]
[1720179678254,0.8869677,130.04,130.03,146.9168]
[1720179678682,0.8869677,130.04,130.03,39.2263]
[1720179678853,0.8869677,130.04,130.03,46.9168]
[1720179679458,0.8869677,130.04,130.01,100.0]
[1720179679857,0.8869677,130.04,130.03,7.6905]
[1720179680567,0.8869677,130.04,130.02,26.9184]
[1720179680760,0.8869677,130.04,130.02,19.2275]
[1720179681380,0.8869677,130.04,130.03,7.6905]
[1720179682783,0.8869677,130.04,130.02,19.2275]
[1720179682984,0.8869677,130.04,130.01,7.6915]
[1720179683179,0.8869677,130.04,130.03,7.6905]
[1720179683360,0.8869677,130.04,130.01,26.9204]
[1720179683560,0.8869677,130.04,130.01,19.2291]
[1720179684358,0.8869677,130.04,130.02,7.6907]
[1720179684772,0.8869677,130.04,130.03,7.6905]
[1720179685081,0.8869677,130.04,130.03,150.9505]
[1720179685887,0.8869677,130.04,130.03,250.9505]
[1720179686085,0.1,130.09,130.08,26.9064]
[1720179686384,0.1,130.09,130.05,19.222]
[1720179686765,0.1,130.09,130.07,7.6877]
[1720179686965,0.1,130.09,130.07,26.9076]
[1720179687485,0.1,130.09,130.08,7.6875]
[1720179687892,0.1,130.09,130.07,26.9076]
[1720179688385,0.1,130.09,130.04,57.6709]
[1720179688563,0.27,130.09,130.05,7.6889]
[1720179688763,0.27,130.09,130.04,26.9133]
[1720179688958,0.27,130.09,130.05,7.6892]
[1720179689560,0.27,130.09,130.06,7.6887]
[1720179690177,0.27,130.09,130.05,7.6893]
[1720179690381,0.1,130.09,130.06,19.2213]
[1720179690964,0.1,130.09,130.03,139.2252]
[1720179691171,0.1,130.09,130.05,7.6891]
[1720179691666,0.27,130.09,130.05,7.6891]
[1720179691866,0.27,130.09,130.06,7.6886]
[1720179692171,0.27,130.09,130.07,7.6879]
[1720179692367,0.1,130.09,130.07,26.9081]
[1720179692773,0.1,130.09,130.08,7.6875]
[1720179693598,0.1,130.09,130.07,26.908]
[1720179694164,0.1,130.09,130.08,107.6875]
[1720179694972,0.1,130.09,130.08,166.1253]
[1720179695171,0.1,130.09,130.08,189.3853]
[1720179696072,0.8723684,130.17,130.08,38.4378]
[1720179696371,7.6841,130.14,130.06,19.2207]
[1720179696677,7.6849,130.13,130.06,19.2207]
[1720179697068,7.6849,130.13,130.06,26.9092]
[1720179697291,0.17,130.12,130.06,19.2207]
[1720179697470,0.17,130.13,130.06,19.2207]
[1720179698071,14.1033,130.12,130.03,19.2253]
[1720179698303,14.1033,130.12,130.03,26.9157]
[1720179698304,20.17,130.11,130.03,26.9157]
[1720179698487,27.856,130.11,130.03,19.2253]
[1720179698684,27.856,130.11,130.04,7.6899]
[1720179698896,20.17,130.11,130.03,19.2253]
[1720179699217,14.1033,130.12,130.06,100.0]
[1720179699415,14.1033,130.12,130.07,7.6875]
[1720179699583,8.6516,130.15,130.08,7.6875]
[1720179699584,15.071,130.15,130.08,7.6875]
[1720179699782,15.071,130.15,130.09,7.6868]
[1720179700209,15.071,130.15,130.1,100.0]
[1720179700412,15.071,130.15,130.11,7.6855]
[1720179700704,15.071,130.15,130.11,26.8995]
[1720179701013,0.8723684,130.17,130.11,26.8995]
[1720179701215,0.8723684,130.17,130.1,7.6862]
[1720179701891,8.5547684,130.17,130.1,7.6862]
[1720179702090,0.8723684,130.17,130.1,7.6862]
[1720179702291,0.8723684,130.17,130.11,7.6857]
[1720179702486,0.8723684,130.17,130.1,26.9018]
[1720179702704,0.8723684,130.17,130.12,7.6847]
[1720179703513,0.8723684,130.17,130.12,19.2127]
[1720179703710,0.8723684,130.17,130.13,7.6842]
[1720179704024,0.8723684,130.17,130.15,7.6832]
[1720179704183,0.8723684,130.17,130.14,19.2093]
[1720179704384,0.8723684,130.17,130.16,7.6828]
[1720179704610,0.8723684,130.17,130.14,19.2093]
[1720179704785,0.8723684,130.17,130.14,26.8933]
[1720179705002,0.8723684,130.17,130.15,7.6833]
[1720179705381,0.8723684,130.17,130.16,7.6828]
[1720179705697,0.8723684,130.17,130.12,100.0]
[1720179706096,0.8723684,130.17,130.13,7.6842]
[1720179706298,0.8723684,130.17,130.16,7.6828]
[1720179707685,0.8723684,130.17,130.16,107.6828]
[1720179707908,0.8723684,130.17,130.16,7.6828]
[1720179708108,0.8723684,130.17,130.15,19.208]
[1720179708290,0.8723684,130.17,130.12,19.2121]
[1720179708500,0.8723684,130.17,130.12,26.8968]
[1720179708820,0.8723684,130.17,130.12,26.897]
[1720179709714,0.8723684,130.17,130.09,19.2163]
[1720179709893,0.17,130.16,130.09,19.2163]
[1720179710214,9.16977676,130.16,130.06,142.321]
[1720179710515,9.16977676,130.16,130.08,119.2187]
[1720179710890,9.16977676,130.16,130.09,7.6868]
[1720179711110,9.16977676,130.16,130.1,7.6862]
[1720179711322,9.16977676,130.16,130.11,7.6857]
[1720179711501,9.16977676,130.16,130.1,126.9018]
[1720179711897,8.20207676,130.16,130.1,19.2157]
[1720179712100,20.0,130.15,130.08,7.6871]
[1720179712303,0.17,130.14,130.07,19.2194]
[1720179712507,8.99977676,130.16,130.09,19.2168]
[1720179712693,8.99977676,130.16,130.1,107.6859]
[1720179712900,8.99977676,130.16,130.09,19.2168]
[1720179712901,0.17,130.15,130.09,26.9035]
[1720179713929,7.8535,130.15,130.08,7.6873]
[1720179714296,7.8535,130.15,130.07,7.688]
[1720179714702,7.8535,130.15,130.08,7.6873]
[1720179715325,0.8723684,130.17,130.11,100.0]
[1720179715527,0.8723684,130.17,130.15,7.683]
[1720179715894,0.8723684,130.17,130.14,26.8933]
[1720179716319,0.8723684,130.17,130.14,19.2095]
[1720179716712,0.8723684,130.17,130.06,139.74]
[1720179716713,0.8723684,130.17,130.06,100.0]
[1720179716901,21.7869,130.15,130.07,7.688]
[1720179717225,21.7869,130.15,130.08,7.6874]
[1720179717403,14.1033,130.15,130.09,7.6869]
[1720179717801,0.17,130.14,130.09,7.6869]
[1720179718103,0.17,130.14,130.08,7.6874]
[1720179718300,0.17,130.14,130.09,7.6868]
[1720179718506,0.17,130.14,130.09,19.2172]
[1720179718707,0.17,130.14,130.1,7.6863]
[1720179718898,0.17,130.14,130.09,26.9039]
[1720179719513,0.17,130.14,130.09,19.2172]
[1720179719727,0.17,130.14,130.07,7.6877]
[1720179720026,0.17,130.14,130.08,7.6875]
[1720179720216,0.17,130.14,130.09,7.6868]
[1720179721727,0.17,130.14,130.08,26.9058]
[1720179722612,0.17,130.14,130.07,7.688]
[1720179723207,0.17,130.14,130.08,7.6873]
[1720179724235,0.17,130.14,130.05,6.3943]
[1720179724415,7.8542,130.14,130.07,7.688]
[1720179724937,14.1033,130.15,130.08,19.2186]
[1720179725227,14.1033,130.15,130.09,7.6865]
[1720179725429,21.787,130.15,130.08,26.906]
[1720179725729,21.787,130.15,130.1,1.04380148]
[1720179726028,22.13717487,130.15,130.1,1.04380148]
[1720179726343,0.8723684,130.17,130.11,7.6853]
[1720179726627,8.5546684,130.17,130.1,8.72990148]
[1720179726803,0.8723684,130.17,130.1,8.72990148]
[1720179727008,8.5550684,130.17,130.1,1.04380148]
[1720179727217,0.8723684,130.17,130.1,8.72970148]
[1720179727406,8.5548684,130.17,130.1,8.72970148]
[1720179727621,7.6828,130.16,130.1,1.04380148]
[1720179727815,7.6844,130.14,130.1,1.04380148]
[1720179728113,7.6858,130.11,130.1,1.04380148]
[1720179728320,7.8558,130.11,130.03,26.9149]
[1720179728520,0.17,130.1,130.04,7.6899]
[1720179728723,7.6869,130.09,130.08,20.0]
[1720179729038,0.17,130.09,130.08,20.0]
[1720179730238,7.8569,130.09,130.08,20.0]
[1720179730452,20.17,130.09,130.08,7.12901217]
[1720179730733,27.8569,130.09,130.08,7.12901217]
[1720179730942,7.6885,130.07,130.01,100.0]
[1720179731109,20.17,130.09,130.01,100.0]
[1720179731110,0.17,130.06,130.01,100.0]
[1720179731310,0.17,130.06,130.01,7.6912]
[1720179731507,15.071,130.13,130.04,100.0]
[1720179731741,15.071,130.13,130.04,119.2241]
[1720179731925,15.071,130.13,130.07,7.6879]
[1720179732113,15.071,130.13,130.06,26.9098]
[1720179732441,20.0780684,130.17,130.07,126.9076]
[1720179732442,7.6836,130.15,130.07,126.9076]
[1720179732812,7.6829,130.16,130.07,119.2197]
[1720179733214,7.6836,130.15,130.08,7.6874]
[1720179733410,7.683,130.16,130.09,7.6868]
[1720179733927,8.5546684,130.17,130.09,107.6868]
[1720179734113,7.6828,130.16,130.09,107.6868]
[1720179734314,8.5547684,130.17,130.09,107.6868]
[1720179735016,20.0,130.16,130.1,7.6862]
[1720179735208,0.8723684,130.17,130.09,119.2169]
[1720179735430,0.8723684,130.17,130.1,7.6862]
[1720179735630,0.8723684,130.17,130.11,19.2143]
[1720179736134,0.8723684,130.17,130.12,7.6847]
[1720179737010,0.8723684,130.17,130.11,19.2143]
[1720179737433,0.8723684,130.17,130.09,100.0]
[1720179737633,8.5549684,130.17,130.09,100.0]
[1720179737929,8.03308445,130.16,130.1,19.2158]
[1720179738353,0.8723684,130.17,130.11,100.0]
[1720179739026,0.8723684,130.17,130.12,7.6846]
[1720179739216,0.8723684,130.17,130.13,100.0]
[1720179739621,0.8723684,130.17,130.16,7.6828]
[1720179740009,0.8723684,130.17,130.14,19.2098]
[1720179740531,0.8723684,130.17,130.16,7.6828]
[1720179740910,0.8723684,130.17,130.15,7.6832]
[1720179741113,0.8723684,130.17,130.15,7.6831]
[1720179741315,0.8723684,130.17,130.16,7.6828]
[1720179743634,0.8723684,130.17,130.15,100.0]
[1720179744019,0.8723684,130.17,130.15,7.683]
[1720179744722,0.8723684,130.17,130.16,7.6828]
[1720179745648,0.1,130.19,130.18,26.8857]
[1720179745829,0.1,130.19,130.18,19.2041]
[1720179747944,0.04567868,130.24,130.23,7.6787]
[1720179748519,0.04567868,130.24,130.23,90.4687]
[1720179749137,0.04567868,130.24,130.23,97.0733]
[1720179749314,0.1,130.29,130.23,97.0733]
[1720179749315,0.1,130.29,130.28,107.6757]
[1720179750346,0.5,130.32,130.31,124.0513]
[1720179750534,0.42402323,130.38,130.35,19.1786]
[1720179750843,0.42402323,130.38,130.32,100.0]
[1720179751226,0.42402323,130.38,130.34,19.1797]
[1720179751537,0.42402323,130.38,130.36,7.6709]
[1720179751736,0.42402323,130.38,130.37,7.6704]
[1720179751944,0.1,130.39,130.38,7.6698]
[1720179752344,0.1,130.39,130.38,107.6698]
[1720179753123,0.1,130.39,130.36,119.1769]
[1720179753319,0.1,130.39,130.34,100.0]
[1720179753546,0.1,130.39,130.37,19.1752]
[1720179753724,0.1,130.39,130.34,119.1803]
[1720179754126,0.1,130.39,130.34,126.8523]
[1720179754431,0.1,130.39,130.34,100.0]
[1720179754631,7.671,130.36,130.29,7.6748]
[1720179754837,7.8409,130.37,130.3,7.6745]
[1720179755026,0.17,130.37,130.31,7.6738]
[1720179755227,0.17,130.37,130.29,26.8623]
[1720179755425,0.1,130.39,130.32,100.0]
[1720179755627,0.27,130.39,130.32,7.6732]
[1720179756035,0.1,130.39,130.33,119.1815]
[1720179756447,0.1,130.39,130.35,7.6716]
[1720179756650,0.1,130.39,130.36,7.6709]
[1720179757242,0.1,130.39,130.35,119.1783]
[1720179757243,0.1,130.39,130.37,7.6701]
[1720179757766,0.1,130.39,130.38,7.6698]
[1720179757927,0.8723684,130.43,130.41,100.0]
[1720179758134,3.069638,130.53,130.43,100.0]
[1720179758432,7.7637,130.49,130.41,107.6679]
[1720179758649,7.7636,130.49,130.41,126.8374]
[1720179759035,7.7635,130.49,130.41,107.6676]
[1720179759351,0.1,130.49,130.43,7.6668]
[1720179759569,0.1,130.49,130.42,19.1683]
[1720179759729,0.1,130.49,130.44,7.6663]
[1720179759927,0.1,130.49,130.46,7.6651]
[1720179760126,0.1,130.49,130.45,100.0]
[1720179760127,0.1,130.49,130.45,107.6656]
[1720179760329,0.1,130.49,130.45,7.6655]
[1720179760553,0.1,130.49,130.44,26.8316]
[1720179760767,0.1,130.49,130.27,82.73818869]
[1720179760768,7.665,130.47,130.4,7.6685]
[1720179760941,19.2589,130.49,130.38,19.174]
[1720179761132,16.0214,130.48,130.34,100.0]
[1720179761328,16.0214,130.48,130.38,100.0]
[1720179761646,16.0214,130.48,130.39,7.6688]